fUSD/lending_fUSD_20260305
["ID","MTS","AMOUNT","RATE_DAILY","PERIOD"]
[407738502,1772724647745,-500.0,0.00035609,120]
[407738503,1772724647754,-500.0,0.00035609,120]
[407738504,1772724647764,-500.0,0.00035609,120]
[407738505,1772724647774,-500.0,0.00035609,120]
[407738506,1772724647784,-775.8,0.00035609,120]
[407738507,1772724647794,-500.0,0.00035609,120]
[407738508,1772724647804,-34538.02871381,0.0003561,2]
[407738509,1772724647817,-7254.41849012,0.0003561,2]
[407738510,1772724647830,-718.064,0.0003561,2]
[407738513,1772724683824,504.0,0.00014,2]
[407738516,1772724974059,-156.43,0.0001679,2]
[407738517,1772724974082,-156.43,0.0001706,2]
[407738518,1772724974108,-156.43,0.0001733,2]
[407738519,1772724974131,-156.43,0.000176,2]
[407738520,1772724974155,-156.43,0.0001787,2]
[407738521,1772724974179,-156.43,0.0001814,2]
[407738522,1772724974202,-156.43,0.0001841,2]
[407738523,1772724974223,-156.46,0.0001868,2]
[407738524,1772724974246,-300.0,0.00019899,2]
[407738525,1772724983227,-500.0,0.00019899,2]
[407738526,1772724983251,-159.57758561,0.00019899,2]
[407738527,1772724983280,-980.94552382,0.00019899,2]
[407738528,1772724983305,-500.0,0.00019899,2]
[407738529,1772724983336,-980.94552382,0.00019899,2]
[407738530,1772724983362,-500.0,0.00019899,2]
[407738531,1772724983389,-980.94552382,0.00019899,2]
[407738532,1772724983417,-980.94552382,0.00019899,2]
[407738533,1772724983438,-631.27297119,0.00019899,2]
[407738534,1772724983465,-980.94552382,0.00019899,2]
[407738535,1772724983486,-270.7026983,0.00019899,2]
[407738536,1772724983514,-980.94552382,0.00019899,2]
[407738537,1772724983541,-980.94552382,0.00019899,2]
[407738538,1772724983568,-980.94552382,0.00019899,2]
[407738539,1772724983595,-980.94552382,0.00019899,2]
[407738540,1772724983622,-980.94552382,0.00019899,2]
[407738541,1772724983652,-980.94552382,0.00019899,2]
[407738542,1772724983680,-980.94552382,0.00019899,2]
[407738543,1772724983706,-980.94552382,0.00019899,2]
[407738544,1772724983732,-980.94552382,0.00019899,2]
[407738545,1772724983758,-217.73941142,0.00019899,2]
[407738546,1772724983875,4999.3589,0.00016291,2]
[407738553,1772725160475,10000.0,0.00016291,2]
[407738554,1772725171855,10000.0,0.00016291,2]
[407738555,1772725183407,10000.0,0.00016291,2]
[407738556,1772725195763,10000.0,0.00016291,2]
[407738558,1772725204203,10000.0,0.00016291,2]
[407738559,1772725212348,10000.0,0.00016291,2]
[407738560,1772725218226,165.19148546,0.00016,10]
[407738561,1772725221051,10000.0,0.00016291,2]
[407738562,1772725233233,10000.0,0.00016291,2]
[407738563,1772725244226,10000.0,0.00016291,2]
[407738564,1772725255271,10000.0,0.00016291,2]
[407738565,1772725261242,-211.34,0.00016438,2]
[407738566,1772725261272,-220.02228065,0.00019899,2]
[407738567,1772725261308,-763.2061124,0.00019899,2]
[407738568,1772725261342,-980.94552382,0.00019899,2]
[407738569,1772725261376,-980.94552382,0.00019899,2]
[407738570,1772725261411,-980.94552382,0.00019899,2]
[407738571,1772725261445,-980.94552382,0.00019899,2]
[407738572,1772725261479,-980.94552382,0.00019899,2]
[407738573,1772725261512,-980.94552382,0.00019899,2]
[407738574,1772725261545,-980.94552382,0.00019899,2]
[407738575,1772725261578,-980.94552382,0.00019899,2]
[407738576,1772725261612,-980.94552382,0.00019899,2]
[407738577,1772725261648,-980.94552382,0.00019899,2]
[407738578,1772725261681,-980.94552382,0.00019899,2]
[407738579,1772725261716,-980.94552382,0.00019899,2]
[407738580,1772725261752,-980.94552382,0.00019899,2]
[407738581,1772725261788,-980.94552382,0.00019899,2]
[407738582,1772725261822,-980.94552382,0.00019899,2]
[407738583,1772725261859,-980.94552382,0.00019899,2]
[407738584,1772725261897,-980.94552382,0.00019899,2]
[407738585,1772725261933,-980.94552382,0.00019899,2]
[407738586,1772725261967,-980.94552382,0.00019899,2]
[407738587,1772725262004,-980.94552382,0.00019899,2]
[407738588,1772725262040,-980.94552382,0.00019899,2]
[407738589,1772725262076,-980.94552382,0.00019899,2]
[407738590,1772725262115,-980.94552382,0.00019899,2]
[407738591,1772725262154,-980.94552382,0.00019899,2]
[407738592,1772725262189,-980.94552382,0.00019899,2]
[407738593,1772725262227,-980.94552382,0.00019899,2]
[407738594,1772725262263,-980.94552382,0.00019899,2]
[407738595,1772725262299,-980.94552382,0.00019899,2]
[407738596,1772725262335,-980.94552382,0.00019899,2]
[407738597,1772725262369,-1315.15385145,0.00019899,2]
[407738598,1772725262408,-1315.15385145,0.00019899,2]
[407738599,1772725262454,-1315.15385145,0.00019899,2]
[407738600,1772725262495,-1315.15385145,0.00019899,2]
[407738601,1772725262535,-1315.15385145,0.00019899,2]
[407738602,1772725262573,-1315.15385145,0.00019899,2]
[407738603,1772725262609,-1315.15385145,0.00019899,2]
[407738604,1772725262646,-1315.15385145,0.00019899,2]
[407738605,1772725262681,-1315.15385145,0.00019899,2]
[407738606,1772725262720,-1315.15385145,0.00019899,2]
[407738607,1772725262758,-1315.15385145,0.00019899,2]
[407738608,1772725262794,-1315.15385145,0.00019899,2]
[407738609,1772725262831,-1315.15385145,0.00019899,2]
[407738610,1772725262866,-1315.15385145,0.00019899,2]
[407738611,1772725262902,-1315.15385145,0.00019899,2]
[407738612,1772725262936,-1315.15385145,0.00019899,2]
[407738613,1772725262970,-1315.15385145,0.00019899,2]
[407738614,1772725263004,-1315.15385145,0.00019899,2]
[407738615,1772725263038,-1315.15385145,0.00019899,2]
[407738616,1772725263071,-1315.15385145,0.00019899,2]
[407738617,1772725263879,-1315.15385145,0.00019899,2]
[407738618,1772725263911,-1315.15385145,0.00019899,2]
[407738619,1772725263940,-1315.15385145,0.00019899,2]
[407738620,1772725263970,-1315.15385145,0.00019899,2]
[407738621,1772725263998,-1315.15385145,0.00019899,2]
[407738622,1772725264026,-1315.15385145,0.00019899,2]
[407738623,1772725264053,-1315.15385145,0.00019899,2]
[407738624,1772725264079,-1315.15385145,0.00019899,2]
[407738625,1772725264105,-758.48097123,0.00019899,2]
[407738626,1772725264134,-758.48097123,0.00019899,2]
[407738627,1772725264161,-758.48097123,0.00019899,2]
[407738628,1772725264191,-758.48097123,0.00019899,2]
[407738629,1772725264221,-758.48097123,0.00019899,2]
[407738630,1772725264253,-758.48097123,0.00019899,2]
[407738631,1772725264282,-758.48097123,0.00019899,2]
[407738632,1772725264310,-758.48097123,0.00019899,2]
[407738633,1772725264338,-500.0,0.00019899,2]
[407738634,1772725264364,-500.0,0.00019899,2]
[407738635,1772725264393,-500.0,0.00019899,2]
[407738636,1772725264418,-500.0,0.00019899,2]
[407738637,1772725264445,-500.0,0.00019899,2]
[407738638,1772725264472,-500.0,0.00019899,2]
[407738639,1772725264499,-500.0,0.00019899,2]
[407738640,1772725264525,-500.0,0.00019899,2]
[407738641,1772725264554,-500.0,0.00019899,2]
[407738642,1772725264581,-500.0,0.00019899,2]
[407738643,1772725264608,-500.0,0.00019899,2]
[407738644,1772725264638,-500.0,0.00019899,2]
[407738645,1772725264666,-500.0,0.00019899,2]
[407738646,1772725264693,-500.0,0.00019899,2]
[407738647,1772725264722,-500.0,0.00019899,2]
[407738648,1772725264755,-500.0,0.00019899,2]
[407738649,1772725264786,-500.0,0.00019899,2]
[407738650,1772725264814,-500.0,0.00019899,2]
[407738651,1772725264841,-500.0,0.00019899,2]
[407738652,1772725264869,-534.8851727,0.00019899,2]
[407738653,1772725264903,-500.0,0.00019899,2]
[407738654,1772725264938,-500.0,0.00019899,2]
[407738655,1772725264976,-500.0,0.00019899,2]
[407738656,1772725265001,-236.80810791,0.00019899,2]
[407738657,1772725265031,-779300.9133,0.000199,2]
[407738658,1772725289439,10000.0,0.00016291,2]
[407738663,1772725309745,10000.0,0.00016291,2]
[407738664,1772725327801,10000.0,0.00016291,2]
[407738665,1772725340596,5026.07,0.00016291,2]
[407738666,1772725357305,5026.06,0.00016291,2]
[407738667,1772725436150,10014.56828494,0.00016,2]
[407738687,1772725831753,-245.95477859,0.000165,2]
[407738688,1772725831763,-477.93244095,0.00016714,2]
[407738689,1772725831772,-150.0,0.00016864,2]
[407738690,1772725831782,-250.0,0.00018385,2]
[407738691,1772725831791,-2448.46278046,0.00018385,2]
[407738692,1772725831803,-51.53721954,0.00018385,2]
[407738693,1772725831812,-201.79,0.000184,2]
[407738694,1772725831821,-3297.9532926,0.000199,2]
[407738695,1772725831832,-1431.2412304,0.000199,2]
[407738696,1772725831842,-445.4,0.00020694,2]
[407738697,1772725831852,-172.70211477,0.00021308,2]
[407738698,1772725831862,-150.0,0.00021309,2]
[407738699,1772725831871,-160.0,0.00021327,2]
[407738700,1772725831881,-567.0,0.00021331,2]
[407738701,1772725831892,-352.0,0.00021379,2]
[407738702,1772725831901,-524.0,0.00021421,2]
[407738703,1772725831911,-515.0,0.00021454,2]
[407738704,1772725831921,-300.0,0.00021495,2]
[407738706,1772725831931,-360.0,0.00021538,2]
[407738708,1772725831941,-1341.0,0.00021768,2]
[407738710,1772725831951,-3500.0,0.00021768,2]
[407738711,1772725831960,-184.41223748,0.00021768,2]
[407738712,1772725831972,-47.16776252,0.00021768,2]
[407738713,1772725831982,-150.0,0.00021768,2]
[407738714,1772725831991,-346.85223748,0.00021768,2]
[407738715,1772725832583,-0.96097272,0.00021768,2]
[407738716,1772725832597,-930.1867898,0.00021768,2]
[407738717,1772725832607,-848.07701884,0.00021768,2]
[407738718,1772725832622,-72.92298116,0.00021768,2]
[407738719,1772725832631,-750.71801884,0.00021768,2]
[407738720,1772725832643,-461.28198116,0.00021768,2]
[407738721,1772725832653,-309.05359843,0.00021768,2]
[407738722,1772725837664,-2149.94640157,0.00021768,2]
[407738723,1772725837673,-5989.0,0.00021768,2]
[407738724,1772725837682,-1431.2412304,0.00022273,2]
[407738725,1772725837691,-3297.9532926,0.00022316,2]
[407738726,1772725837700,-168.0,0.00022467,2]
[407738727,1772725837709,-407.0,0.00022561,2]
[407738728,1772725837718,-3970.87566152,0.00022869,2]
[407738729,1772725837727,-380.0,0.00022928,2]
[407738730,1772725837736,-160.0,0.00023,2]
[407738731,1772725837744,-21471.8483,0.00023007,2]
[407738732,1772725837753,-1856.7793226,0.00023027,2]
[407738733,1772725837762,-2000.0,0.00023127,2]
[407738734,1772725837771,-320.01,0.00023158,2]
[407738735,1772725837780,-445.4,0.00023349,2]
[407738736,1772725837788,-440.82,0.00023528,2]
[407738737,1772725837797,-599.60298507,0.00024637,2]
[407738738,1772725837806,-205.79172239,0.00024637,2]
[407738739,1772725837814,-747.8093786,0.00024637,2]
[407738740,1772725837833,-693.3919763,0.00024637,2]
[407738741,1772725837843,-250.0,0.00024637,2]
[407738742,1772725837852,-250.0,0.00024637,2]
[407738743,1772725837862,-262.90206542,0.00024637,2]
[407738744,1772725837871,-250.0,0.00024637,2]
[407738745,1772725837880,-250.0,0.00024637,2]
[407738746,1772725837890,-250.0,0.00024637,2]
[407738747,1772725837899,-250.0,0.00024637,2]
[407738748,1772725837909,-174.61919141,0.00024637,2]
[407738749,1772725837918,-500.0,0.00024637,2]
[407738750,1772725837927,-500.0,0.00024637,2]
[407738751,1772725837936,-500.0,0.00024637,2]
[407738752,1772725837945,-500.0,0.00024637,2]
[407738753,1772725837955,-209.40437685,0.00024637,2]
[407738754,1772725837964,-743.50770149,0.00024637,2]
[407738755,1772725837973,-188.04392138,0.00024637,2]
[407738756,1772725837982,-500.0,0.00024637,2]
[407738757,1772725837991,-500.0,0.00024637,2]
[407738758,1772725838000,-500.0,0.00024637,2]
[407738759,1772725838010,-500.0,0.00024637,2]
[407738760,1772725838019,-269.917619,0.00024637,2]
[407738761,1772725838028,-500.0,0.00024637,2]
[407738762,1772725838037,-500.0,0.00024637,2]
[407738763,1772725838047,-500.0,0.00024637,2]
[407738764,1772725838056,-500.0,0.00024637,2]
[407738765,1772725838065,-500.0,0.00024637,2]
[407738766,1772725838075,-500.0,0.00024637,2]
[407738767,1772725838084,-1431.2412304,0.00024645,2]
[407738768,1772725838094,-841.33,0.00024658,30]
[407738769,1772725838104,-150.0,0.00024658,2]
[407738770,1772725838115,-719.04747942,0.00024692,2]
[407738771,1772725838124,-440.83212477,0.00024704,2]
[407738772,1772725838134,-3297.9532926,0.00024733,2]
[407738773,1772725838143,-745.65223616,0.00024747,2]
[407738774,1772725838153,-2459.0,0.00024768,2]
[407738775,1772725838162,-5989.0,0.00024768,2]
[407738776,1772725838171,-773.2413689,0.00024802,2]
[407738777,1772725838181,-801.85129955,0.00024857,2]
[407738778,1772725838191,-831.51979763,0.00024912,2]
[407738779,1772725838201,-862.28603014,0.00024967,2]
[407738780,1772725838211,-894.19061326,0.00025022,2]
[407738781,1772725838220,-927.27566595,0.00025077,2]
[407738782,1772725838230,-961.58486559,0.00025132,2]
[407738783,1772725838239,-272.62944185,0.00025185,2]
[407738784,1772725838249,-181.08010149,0.00025185,2]
[407738785,1772725838259,-997.16350561,0.00025187,2]
[407738786,1772725838268,-1856.77932256,0.00025632,2]
[407738787,1772725838277,-163.93,0.000257,14]
[407738788,1772725838287,-282.71673119,0.00025733,2]
[407738789,1772725838297,-187.78006525,0.00025733,2]
[407738790,1772725838307,-8122.58,0.00025786,2]
[407738791,1772725838316,-150.99,0.00025786,2]
[407738792,1772725838327,-259.58,0.00025786,10]
[407738793,1772725838337,-150.0,0.0002589,2]
[407738794,1772725838348,-445.4,0.00026004,2]
[407738795,1772725838360,-500.0,0.0002603,120]
[407738796,1772725838370,-320.01,0.00026053,120]
[407738797,1772725838380,-671.0,0.000261,2]
[407738798,1772725838392,-491.0,0.000261,2]
[407738799,1772725838402,-293.17725025,0.00026281,2]
[407738800,1772725838411,-194.72792766,0.00026281,2]
[407738801,1772725838422,-253.52176029,0.00026829,2]
[407738802,1772725838432,-201.93286099,0.00026829,2]
[407738803,1772725838442,-1431.2412304,0.00027018,2]
[407738804,1772725838451,-3297.9532926,0.00027149,2]
[407738805,1772725838462,-150.0,0.00027185,2]
[407738806,1772725838471,-258.63748797,0.00027377,2]
[407738807,1772725838482,-300.0,0.00027397,2]
[407738808,1772725838492,-17424.73,0.00027397,10]
[407738809,1772725838503,-841.33,0.00027593,30]
[407738810,1772725838513,-2459.0,0.00027768,2]
[407738811,1772725838522,-5989.0,0.00027768,2]
[407738812,1772725838532,-160.0,0.00028,3]
[407738813,1772725838541,-1856.77932256,0.00028238,2]
[407738814,1772725838552,-150.0,0.00028544,2]
[407738815,1772725838562,-445.4,0.00028659,2]
[407738816,1772725838572,-200.0,0.00028899,2]
[407738817,1772725838582,-320.01,0.00028948,120]
[407738818,1772725838591,-500.0,0.00029366,120]
[407738819,1772725838600,-151.0,0.00029537,3]
[407738820,1772725838611,-151.0,0.00029537,3]
[407738821,1772725838620,-151.0,0.00029537,3]
[407738822,1772725838631,-151.0,0.00029537,3]
[407738823,1772725838642,-166.0,0.00029537,3]
[407738824,1772725838652,-151.0,0.00029537,3]
[407738825,1772725838662,-166.0,0.00029537,3]
[407738826,1772725838671,-151.0,0.00029537,3]
[407738827,1772725838682,-166.0,0.00029537,3]
[407738828,1772725838691,-166.0,0.00029537,3]
[407738829,1772725838700,-166.0,0.00029537,3]
[407738830,1772725838712,-166.0,0.00029537,3]
[407738831,1772725838723,-166.0,0.00029537,3]
[407738832,1772725838733,-185.0,0.00029537,3]
[407738833,1772725838743,-151.0,0.00029537,3]
[407738834,1772725838757,-154.76360994,0.00029537,3]
[407738835,1772725838768,-151.0,0.00029537,3]
[407738836,1772725838778,-151.0,0.00029537,3]
[407738837,1772725838789,-151.0,0.00029537,3]
[407738838,1772725838799,-193.80059564,0.00029573,5]
[407738839,1772725838810,-150.0,0.00029971,2]
[407738840,1772725838820,-491.8,0.000304,14]
[407738841,1772725838831,-841.33,0.00030528,30]
[407738842,1772725838841,-2459.0,0.00030768,2]
[407738843,1772725838850,-5989.0,0.00030768,2]
[407738844,1772725838860,-1856.77932256,0.00030843,2]
[407738845,1772725838870,-445.4,0.00031314,2]
[407738846,1772725838880,-160.0,0.00031317,10]
[407738847,1772725838889,-150.0,0.0003147,2]
[407738848,1772725838899,-320.01,0.00031843,120]
[407738849,1772725838909,-13924.71031402,0.0003185,20]
[407738850,1772725838956,-401.99593401,0.0003185,20]
[407738851,1772725838968,-14962.1660319,0.0003185,20]
[407738852,1772725838984,-838.70178587,0.0003185,20]
[407738855,1772725839944,-1819.1209591,0.0003185,20]
[407738856,1772725840094,-4216.3049751,0.0003185,20]
[407738857,1772725840106,-3240.0,0.00031983,120]
[407738858,1772725840115,-1022.12,0.00032,120]
[407738859,1772725840124,-1000.0,0.00032697,2]
[407738860,1772725840133,-370.318032,0.00032702,120]
[407738861,1772725840144,-162.603,0.00032787,33]
[407738862,1772725840154,-1624.221,0.00032787,33]
[407738863,1772725840163,-2827.18660905,0.00032851,2]
[407738864,1772725840172,-36163.0,0.000329,20]
[407738865,1772725840182,-500.0,0.00032951,120]
[407738866,1772725840192,-150.0,0.00033043,2]
[407738867,1772725840201,-183.55548963,0.00033173,5]
[407738868,1772725840211,-316.88116143,0.00033173,5]
[407738869,1772725840220,-500.0,0.00033173,5]
[407738870,1772725840229,-1022.12,0.0003328,120]
[407738871,1772725840239,-1856.77932256,0.00033448,2]
[407738872,1772725840248,-841.33,0.00033464,30]
[407738873,1772725840258,-2459.0,0.00033768,2]
[407738874,1772725840267,-3175.537,0.00033768,2]
[407738883,1772725840608,-150.0,0.0003394,20]
[407738884,1772725840619,-36163.0,0.0003395,20]
[407738885,1772725840628,-445.4,0.00033969,2]
[407738886,1772725840639,-195.97,0.00034533,120]
[407738887,1772725840650,-180.13999947,0.00034542,2]
[407738888,1772725840660,-1022.12,0.0003456,120]
[407738889,1772725840669,-150.0,0.00034696,2]
[407738890,1772725840678,-320.01,0.00034738,120]
[407738891,1772725840688,-3629.12,0.00034738,2]
[407738892,1772725840697,-2827.18660901,0.00034797,2]
[407738893,1772725840706,-151.0,0.0003499,7]
[407738894,1772725840716,-20329.3977544,0.00035,20]
[407738895,1772725840728,-15833.6022456,0.00035,20]
[407738896,1772725840738,-200.0,0.00035,3]
[407738897,1772725840748,-452.49,0.00035261,30]
[407738898,1772725840759,-200.0,0.00035324,10]
[407738899,1772725840769,-200.0,0.00035325,10]
[407738900,1772725840780,-3867.0,0.00035392,5]
[407738901,1772725840790,-26321.6214196,0.00035434,2]
[407738902,1772725840799,-270.06,0.00035546,2]
[407738903,1772725840810,-589.0,0.000356,2]
[407738904,1772725840819,-150.0,0.000356,2]
[407738905,1772725840829,-45851.4544059,0.000356,2]
[407738906,1772725840838,-13100.4155445,0.00035606,2]
[407738907,1772725840848,-7539.71726389,0.0003561,2]
[407738908,1772725840857,-48271.22842871,0.0003561,2]
[407738909,1772725840869,-348.29538123,0.0003561,2]
[407738910,1772725840891,-413.0,0.00021768,2]
[407738911,1772725840901,-6174.80290899,0.0003561,2]
[407738912,1772725840919,-4565.09014242,0.0003561,2]
[407738916,1772725845715,-413.0,0.00024768,2]
[407738917,1772725845726,-413.0,0.00027768,2]
[407738918,1772725845735,-413.0,0.00030768,2]
[407738919,1772725845744,-890.39662644,0.00034911,7]
[407738920,1772725845756,-109.60337356,0.00034911,7]
[407738921,1772725845766,-1000.0,0.00035185,7]
[407738922,1772725845775,-181.28082058,0.00035459,7]
[407738923,1772725845787,-818.71917942,0.00035459,7]
[407738924,1772725845796,-1322.68651489,0.0003561,2]
[407738926,1772725845808,-1632.51041928,0.0003561,2]
[407738928,1772725845880,-820.81139748,0.0003561,2]
[407738929,1772725845892,-89649.9999995,0.0003561,2]
[407738930,1772725845944,-310.25882034,0.0003561,2]
[407738942,1772725846138,-858.87950471,0.0003561,2]
[407738944,1772725846149,-8352.0,0.0003561,2]
[407738945,1772725846204,-6514.83180216,0.0003561,2]
[407738946,1772725846214,-151.0,0.0003561,7]
[407738947,1772725846223,-749.79081774,0.00035616,120]
[407738948,1772725846233,-335.31,0.00035616,2]
[407738949,1772725846242,-1000.0,0.00035616,10]
[407738950,1772725846251,-1000.0,0.00035616,10]
[407738951,1772725846260,-1000.0,0.00035616,10]
[407738952,1772725846269,-1000.0,0.00035616,10]
[407738953,1772725846279,-1000.0,0.00035616,10]
[407738954,1772725846288,-1000.0,0.00035616,10]
[407738955,1772725846297,-1000.0,0.00035616,10]
[407738956,1772725846307,-1000.0,0.00035616,10]
[407738957,1772725846317,-1000.0,0.00035616,10]
[407738958,1772725846328,-1000.0,0.00035616,10]
[407738959,1772725846337,-1000.0,0.00035616,10]
[407738960,1772725846346,-1000.0,0.00035616,10]
[407738961,1772725846359,-1000.0,0.00035616,10]
[407738962,1772725846368,-1000.0,0.00035616,10]
[407738963,1772725846377,-1000.0,0.00035616,10]
[407738964,1772725846387,-1000.0,0.00035616,10]
[407738965,1772725846396,-1000.0,0.00035616,10]
[407738966,1772725846405,-1000.0,0.00035616,10]
[407738967,1772725846415,-1000.0,0.00035616,10]
[407738968,1772725846426,-1000.0,0.00035616,10]
[407738969,1772725846435,-181.0,0.00035616,10]
[407738970,1772725846445,-1000.0,0.00035616,10]
[407738971,1772725846454,-201.15922368,0.00035616,2]
[407738972,1772725846466,-161.09467357,0.00035673,2]
[407738973,1772725846476,-150.0,0.00035673,5]
[407738974,1772725846485,-150.0,0.00035673,5]
[407738975,1772725846495,-465.79,0.000357,14]
[407738976,1772725846504,-160.0,0.000357,120]
[407738977,1772725846514,-160.0,0.000357,10]
[407738978,1772725846523,-1000.0,0.00035733,14]
[407738979,1772725846533,-6550.20777227,0.0003579,2]
[407738980,1772725846543,-4000.0,0.000358,13]
[407738981,1772725846552,-1022.12,0.0003584,120]
[407738983,1772725846561,-795.46336,0.00035888,30]
[407738984,1772725846570,-6550.20777227,0.0003589,2]
[407738985,1772725846580,-8000.0,0.000359,13]
[407738986,1772725846589,-777.14760006,0.000359,2]
[407738987,1772725846599,-150.0,0.00035973,5]
[407738988,1772725846608,-151.0,0.00035978,7]
[407738989,1772725846618,-6550.20777227,0.00035979,2]
[407738990,1772725846627,-91702.9088118,0.0003598,2]
[407738991,1772725846637,-6550.20777227,0.00035989,2]
[407738992,1772725846647,-500.0,0.00035989,120]
[407738993,1772725846656,-500.0,0.00035989,120]
[407738994,1772725846666,-500.0,0.00035989,120]
[407738995,1772725846675,-150.0,0.0003599,2]
[407738996,1772725846687,-71697.3355036,0.0003599,2]
[407738997,1772725847546,-124808.8976644,0.0003599,2]
[407738998,1772725847556,-381.71920462,0.00035999,45]
[407738999,1772725847566,-500.0,0.00035999,10]
[407739000,1772725847577,-512.19785893,0.00035999,10]
[407739001,1772725847587,-500.0,0.00035999,120]
[407739002,1772725847596,-500.0,0.00035999,120]
[407739003,1772725847606,-500.0,0.00035999,120]
[407739004,1772725847616,-500.0,0.00035999,120]
[407739005,1772725847626,-500.0,0.00035999,120]
[407739006,1772725847635,-500.0,0.00035999,120]
[407739007,1772725847646,-177.14945896,0.00035999,120]
[407739008,1772725847655,-775.8,0.00035999,120]
[407739009,1772725847665,-775.8,0.00035999,120]
[407739010,1772725847676,-504.08967444,0.00035999,120]
[407739011,1772725847687,-155951.49493438,0.00036,2]
[407739012,1772725847696,-235970.89547068,0.00036,2]
[407739013,1772725847706,-400.0,0.00036,120]
[407739014,1772725847716,-1172.11972504,0.00036,120]
[407739015,1772725847727,-1000.0,0.00036,120]
[407739016,1772725847736,-150.0,0.00036,2]
[407739017,1772725847747,-160.0,0.00036,10]
[407739018,1772725847756,-151.0,0.00036,7]
[407739019,1772725847766,-166.25,0.00036,14]
[407739020,1772725847776,-151.0,0.00036,7]
[407739021,1772725847787,-151.0,0.00036,7]
[407739022,1772725847797,-151.0,0.00036,7]
[407739023,1772725847807,-151.0,0.00036,7]
[407739024,1772725847817,-151.0,0.00036,7]
[407739025,1772725847828,-151.0,0.00036,7]
[407739026,1772725847838,-151.0,0.00036,7]
[407739027,1772725847849,-151.0,0.00036,7]
[407739028,1772725847860,-151.0,0.00036,7]
[407739029,1772725847870,-151.0,0.00036,7]
[407739030,1772725847879,-474.77618444,0.00036,2]
[407739031,1772725847888,-151.0,0.00036,7]
[407739032,1772725847898,-289.283162,0.00036,7]
[407739033,1772725847907,-151.0,0.00036,7]
[407739034,1772725847917,-1000.0,0.00036007,14]
[407739035,1772725847927,-6550.20777227,0.0003603,2]
[407739036,1772725847936,-13100.4155445,0.0003604,2]
[407739037,1772725847946,-6550.20777227,0.00036044,2]
[407739038,1772725847956,-36163.0,0.0003605,20]
[407739039,1772725847966,-1856.77932256,0.00036054,2]
[407739040,1772725847976,-795.46336,0.00036088,30]
[407739041,1772725847985,-150.1,0.00036095,2]
[407739042,1772725847994,-150.1,0.00036095,2]
[407739043,1772725848004,-150.1,0.00036095,2]
[407739044,1772725848013,-150.1,0.00036095,2]
[407739045,1772725848023,-150.1,0.00036095,2]
[407739046,1772725848033,-151.63269291,0.00036095,2]
[407739047,1772725848042,-250.0,0.00036221,5]
[407739048,1772725848052,-250.0,0.00036221,5]
[407739049,1772725848062,-1000.0,0.00036281,14]
[407739050,1772725848071,-795.46336,0.00036288,30]
[407739051,1772725848080,-841.33,0.00036399,30]
[407739052,1772725848089,-195.52,0.00036419,10]
[407739053,1772725848098,-150.0,0.0003643,2]
[407739054,1772725848108,-6550.20777227,0.00036478,3]
[407739055,1772725848117,-350.0,0.00036483,3]
[407739056,1772725848126,-795.46336,0.00036488,30]
[407739057,1772725848135,-827.67,0.00036495,10]
[407739058,1772725848144,-465.79,0.000365,14]
[407739059,1772725848153,-350.0,0.00036516,14]
[407739060,1772725848162,-250.0,0.00036521,5]
[407739061,1772725848171,-1000.0,0.00036555,14]
[407739062,1772725848180,-441.0,0.00036609,30]
[407739063,1772725848189,-935.0,0.00036609,30]
[407739064,1772725848198,-445.4,0.00036624,5]
[407739065,1772725848207,-795.46336,0.00036688,30]
[407739066,1772725848216,-2827.18660901,0.00036744,2]